Cogmind - Beta 13 @@@ ROGUE MODE // 2024.07.28 @ 12:55:53 Player: LegoMDS Result: Smashed by cave-in Performance ------------- Evolutions (1) 500 Regions Visited (4) 800 Robots Destroyed (36) 180 Value Destroyed (767) 767 Prototype IDs (3) 60 Alien Tech Used (0) 0 Bonus (15) 15 TOTAL SCORE: 2322 Bonus ------- High Alert Combat Kills 15 Cogmind --------- Core Integrity 0/400 Matter 245/300 Energy 280/280 System Corruption 0% Temperature Cool (0) Movement Walking (120) Location -9/Exiles Parts ------- > --- POWER (1) -------- Cooled Ion Engine > --- PROPULSION (3) --- Aluminum Leg Aluminum Leg Improved Aluminum Leg > --- UTILITY (3) ------ Medium Storage Unit Structural Scanner Targeting Computer > --- WEAPON (2) ------- Heavy Hammer Makeshift Sword > --- INVENTORY (10) --- Cooled Ion Engine Cooled Ion Engine High-capacity Matter Pod (122) Makeshift Hacking Suite Makeshift System Shield Makeshift System Restoration Module Autogun Shotgun Improved Assault Rifle Rocket Launcher Peak State ------------ > --- POWER ------------ Cooled Ion Engine > --- PROPULSION ------- Aluminum Leg Aluminum Leg Improved Aluminum Leg > --- UTILITY ---------- Medium Storage Unit Targeting Computer Makeshift System Restoration Module > --- WEAPON ----------- Improved Assault Rifle Makeshift Sword > --- INVENTORY -------- Cooled Ion Engine Cooled Ion Engine High-capacity Matter Pod Structural Scanner Makeshift System Shield Autogun Shotgun Improved Assault Rifle Rocket Launcher Rocket Launcher [Rating: 22] Favorites ----------- Power Cooled Ion Engine Engine Cooled Ion Engine Propulsion Aluminum Leg Leg Aluminum Leg Utility Targeting Computer Device Structural Scanner Storage Medium Storage Unit Processor Targeting Computer Weapon Improved Assault Rifle Energy Gun EM Pulse Gun Ballistic Gun Improved Assault Rifle Special Weapon Plasma Cutter Impact Weapon Heavy Hammer Slashing Weapon Makeshift Sword Build | -11 -10 -9 -9 -9 ------- Run | Yrd Mat Mat Min Exi Slots Evolved 2 | . . 2 . . Power . | . . . . . Propulsion 1 | . . 1 . . Utility 1 | . . 1 . . Weapon . | . . . . . Parts Attached 35 | 6 3 18 2 6 Power 5 | 1 . 4 . . Engine 5 | 1 . 4 . . Core . | . . . . . Reactor . | . . . . . Propulsion 11 | 2 1 7 . 1 Treads . | . . . . . Leg 11 | 2 1 7 . 1 Wheel . | . . . . . Hover . | . . . . . Flight . | . . . . . Utility 6 | 1 1 2 . 2 Device 3 | . . 1 . 2 Storage 2 | 1 . 1 . . Processor 1 | . 1 . . . Hackware . | . . . . . Protection . | . . . . . Artifact . | . . . . . Weapon 13 | 2 1 5 2 3 Energy Gun 1 | 1 . . . . Energy Cannon . | . . . . . Ballistic Gun 8 | 1 1 5 1 . Ballistic Cannon . | . . . . . Launcher . | . . . . . Special Weapon 1 | . . . 1 . Impact Weapon 1 | . . . . 1 Slashing Weapon 2 | . . . . 2 Piercing Weapon . | . . . . . Special Melee Weapon . | . . . . . Unidentified Prototypes 3 | . . 3 . . Parts Lost 8 | . 1 7 . . Power 1 | . . 1 . . Propulsion 4 | . 1 3 . . Utility . | . . . . . Weapon 3 | . . 3 . . Highest Loss Streak 6 | . 1 6 . . To Critical Strikes . | . . . . . Average Slot Usage (%) 97 | . 96 94 100 100 Engine 11 | . 14 10 11 11 Leg 30 | . 27 29 33 33 Device 9 | . . 11 11 11 Storage 11 | . 14 11 11 11 Processor 11 | . 11 11 11 11 Energy Gun 1 | . 12 . . . Ballistic Gun 18 | . 15 20 20 18 Slashing Weapon 1 | . . . . 3 Naked Turns . | . . . . . Heaviest Build 29 | 13 13 25 25 29 Greatest Support 33 | 20 20 33 33 33 Greatest Overweight (x) 2 | 1 1 2 . . Average Overweight (x) . | . . . . . Largest Inventory Capacity 10 | 8 8 10 10 10 Average Capacity 9 | 7 8 9 10 10 Most Carried 10 | 4 6 10 10 10 Average Carried 7 | 1 3 7 9 9 Final Capacity 10 | 8 8 10 10 10 Final Carried 10 | 1 5 9 9 10 Class Distribution -------------------- 97% | Mutant Dominant Class ---------------- Mutant | -10/Materials Mutant | -9/Materials Mutant | -9/Mines Mutant | -9/Exiles Resources | -11 -10 -9 -9 -9 ----------- Run | Yrd Mat Mat Min Exi Matter Collected 909 | 217 97 401 . 194 Remotely . | . . . . . Salvage Created 1383 | . 267 899 . 217 Parts 74 | . 9 57 . 8 Haulers Intercepted 3 | . . 3 . . Recyclers Shooed 1 | . 1 . . . Parts Field Recycled . | . . . . . Retrieved Matter . | . . . . . Parts Self-Destructed . | . . . . . Prevented . | . . . . . Kills | -11 -10 -9 -9 -9 ------- Run | Yrd Mat Mat Min Exi Combat Hostiles Destroyed 27 | . 4 21 . 2 Melee 1 | . . 1 . . Guns 26 | . 4 20 . 2 Classes Destroyed 8 | . 5 3 . . Worker 1 | . 1 . . . Builder 1 | . . 1 . . Hauler 3 | . . 3 . . Recycler 2 | . 2 . . . Watcher 2 | . 1 1 . . Swarmer 11 | . 3 8 . . Grunt 12 | . 1 9 . 2 Sentry 4 | . . 4 . . Best Kill Streak 6 | . 6 4 . 2 Combat Bots Only 4 | . 4 4 . 2 Max Kills in Single Turn 2 | . 2 2 . 1 Gunslinging 1 | . 1 . . . Exploded . | . . . . . Melee 1 | . . 1 . . Uniques/NPCs Destroyed . | . . . . . Combat | -11 -10 -9 -9 -9 -------- Run | Yrd Mat Mat Min Exi Hostile Shots Fired 186 | . 47 138 1 . Missed 48 | . 6 41 1 . Damage Taken 1672 | . 385 1230 . 57 Core 510 | . 71 382 . 57 Absorbed by Shields . | . . . . . Core Remaining (%) 85 | 100 71 . . . Volleys Fired 118 | . 29 80 1 8 Largest 2 | . 2 2 1 2 Hottest 60 | . 60 46 20 46 Shots Fired 202 | . 47 141 1 13 Gun 201 | . 47 141 . 13 Cannon . | . . . . . Launcher . | . . . . . Special 1 | . . . 1 . Kinetic 183 | . 29 141 . 13 Thermal 1 | . . . 1 . Explosive . | . . . . . Electromagnetic 18 | . 18 . . . Robot Hit Streak 22 | . 8 22 . 4 Robot Miss Streak 4 | . 2 4 . 2 Penetration Max . | . . . . . Secondary Targets 3 | . 3 . . . Max Gunslinging Chain 1 | . 1 . . . Shots Hit Robots 144 | . 31 102 . 11 Core Hits 62 | . 14 42 . 6 Critical Kills 1 | . . 1 . . Critical Parts Destroyed . | . . . . . Critical Strikes 1 | . . 1 . . Destroy 1 | . . 1 . . Melee Attacks 13 | . . . . 13 Impact 8 | . . . . 8 Slashing 5 | . . . . 5 Piercing . | . . . . . Sneak Attacks . | . . . . . Combat Hostiles . | . . . . . Follow-up Attacks 3 | . . . . 3 Damage Inflicted 2295 | . 461 1395 . 439 Guns 1851 | . 353 1380 . 118 Cannons . | . . . . . Explosions 108 | . 108 . . . Melee 321 | . . . . 321 Ramming 15 | . . 15 . . Kinetic 1661 | . 163 1380 . 118 Thermal 108 | . 108 . . . Explosive . | . . . . . Electromagnetic 190 | . 190 . . . Impact 321 | . . . . 321 Slashing . | . . . . . Piercing . | . . . . . Highest Corruption 2 | . . 2 2 2 Average Corruption 1 | . . 1 2 1 Corruption Purged 2 | . . . . 2 Corruption Blocked . | . . . . . Effects 16 | . . 2 2 12 Message Errors 4 | . . . . 4 Matter Fused 3 | . . . 2 1 Heat Flow Errors 2 | . . . . 2 Energy Discharges 2 | . . . . 2 Parts Rejected 1 | . . . . 1 Data Loss (minor) 2 | . . . . 2 Weapon Failures 2 | . . 2 . . Overload Shots . | . . . . . Overflow Damage 145 | . . . . 145 Projectiles . | . . . . . Explosions . | . . . . . Melee 145 | . . . . 145 Knockbacks . | . . . . . Impact . | . . . . . Kinetic . | . . . . . Secondary . | . . . . . Self-Inflicted Damage 33 | . 27 6 . . Shots 1 | . 1 . . . Rammed 5 | . . 5 . . Targets Rammed 7 | . . 7 . . Kicked 2 | . . 2 . . Crushed . | . . . . . Highest Temperature 207 | . 84 17 . 207 Average Temperature 41 | . 33 8 . 100 Received Heat Transfer 531 | . 42 489 . . Siege Activations . | . . . . . Robots Corrupted . | . . . . . Combat Hostiles . | . . . . . Parts Fried 1 | . 1 . . . Impact Corruptions 2 | . . . . 2 Robots Melted . | . . . . . Combat Hostiles . | . . . . . Parts Melted . | . . . . . Heat Transferred 200 | . 200 . . . Parts Sabotaged . | . . . . . Parts Stolen . | . . . . . Parts Stripped . | . . . . . Power Chain Reactions 1 | . 1 . . . Alert | -11 -10 -9 -9 -9 ------- Run | Yrd Mat Mat Min Exi Peak Influence 464 | . 169 464 167 . Initial 122 | . . 70 122 . Average 180 | . 65 245 145 . Maximum Alert Level 2 | . . 2 . . Low Security (%) 64 | 100 100 40 100 . Level 1 24 | . . 40 . . Level 2 11 | . . 19 . . Level 3 . | . . . . . Level 4 . | . . . . . Level 5 . | . . . . . High Security . | . . . . . Max Security . | . . . . . Squads Dispatched 4 | . 2 2 . . Investigation 3 | . 2 1 . . Extermination . | . . . . . Reinforcement 1 | . . 1 . . Assault . | . . . . . Garrison . | . . . . . Intercept . | . . . . . Searches Triggered . | . . . . . Construction Impeded . | . . . . . Haulers Reinforced . | . . . . . Active Scanning Responses . | . . . . . Cargo Convoy Interrupts . | . . . . . Stealth | -11 -10 -9 -9 -9 --------- Run | Yrd Mat Mat Min Exi Distress Signals 1 | . 1 . . . Communications Jammed . | . . . . . Distress Signals . | . . . . . Times Spotted 38 | . 8 27 3 . Peak Tracking Total 4 | . 4 4 3 . Tactical Retreats 3 | . . 2 1 . Traps | -11 -10 -9 -9 -9 ------- Run | Yrd Mat Mat Min Exi Traps Triggered 4 | . 1 3 . . Indirectly . | . . . . . Trap Hack Attempts . | . . . . . Triggered . | . . . . . Disarmed . | . . . . . Reprogrammed . | . . . . . Reused . | . . . . . Traps Extracted . | . . . . . Installed . | . . . . . Triggered 1 | . 1 . . . Machines | -11 -10 -9 -9 -9 ---------- Run | Yrd Mat Mat Min Exi Machines Disabled . | . . . . . Max in Single Turn . | . . . . . Machines Repaired . | . . . . . Machines Dismantled . | . . . . . Machines Sabotaged . | . . . . . Overloaded Fab Kills . | . . . . . Hacking | -11 -10 -9 -9 -9 --------- Run | Yrd Mat Mat Min Exi Machines Accessed 2 | . . . . 2 Terminals . | . . . . . Fabricators . | . . . . . Repair Stations . | . . . . . Recycling Units . | . . . . . Scanalyzers . | . . . . . Garrison Access . | . . . . . Total Hacks 24 | . . . . 24 Successful 24 | . . . . 24 Failed . | . . . . . Catastrophic . | . . . . . Database Lockouts . | . . . . . Manual . | . . . . . Terminals . | . . . . . Fabricators . | . . . . . Repair Stations . | . . . . . Recycling Units . | . . . . . Scanalyzers . | . . . . . Garrison Access . | . . . . . Terminal Hacks 24 | . . . . 24 Record 24 | . . . . 24 Fabricator Hacks . | . . . . . Repair Station Hacks . | . . . . . Recycling Unit Hacks . | . . . . . Scanalyzer . | . . . . . Garrison Access Hacks . | . . . . . Unauthorized Hacks . | . . . . . Terminals . | . . . . . Fabricators . | . . . . . Repair Stations . | . . . . . Recycling Units . | . . . . . Scanalyzers . | . . . . . Garrison Access . | . . . . . Data Cores Recovered . | . . . . . Used . | . . . . . Hacking Detections . | . . . . . Full Trace Events . | . . . . . Feedback Events . | . . . . . Feedback Blocked . | . . . . . Robot Schematics Acquired . | . . . . . Robots Built . | . . . . . Authchips . | . . . . . Time . | . . . . . Total Robot Build Rating . | . . . . . Part Schematics Acquired . | . . . . . Parts Built . | . . . . . Authchips . | . . . . . Time . | . . . . . Total Part Build Rating . | . . . . . Parts Repaired . | . . . . . Time . | . . . . . Parts Recycled . | . . . . . Recycled Matter . | . . . . . Retrieved Matter . | . . . . . Retrieved Components . | . . . . . Parts Scanalyzed . | . . . . . Part Schematics Acquired . | . . . . . Parts Damaged . | . . . . . Bothacking | -11 -10 -9 -9 -9 ------------ Run | Yrd Mat Mat Min Exi Used RIF Installer . | . . . . . Robots Hacked . | . . . . . Non-combat . | . . . . . Combat . | . . . . . Robot Hacks Applied . | . . . . . Relay Couplers Released . | . . . . . Fabnet Peak Effective % . | . . . . . Robots Rewired . | . . . . . Allies Hacked . | . . . . . Hacks Repelled . | . . . . . Allies | -11 -10 -9 -9 -9 -------- Run | Yrd Mat Mat Min Exi Total Allies . | . . . . . Largest Group . | . . . . . Highest-Rated Group . | . . . . . Highest-Rated Ally . | . . . . . Total Orders . | . . . . . Ally Attacks . | . . . . . Total Damage . | . . . . . Kills . | . . . . . Allies Corrupted . | . . . . . Allies Melted . | . . . . . Intel | -11 -10 -9 -9 -9 ------- Run | Yrd Mat Mat Min Exi Robot Analysis Total . | . . . . . Derelict Logs Recovered 1 | . . . 1 . Drone Launches . | . . . . . Drone Recoveries . | . . . . . Exploration | -11 -10 -9 -9 -9 ------------- Run | Yrd Mat Mat Min Exi Turns Passed 2184 | 60 333 837 172 782 Spaces Moved 1443 | 39 205 466 135 598 Core 12 | 4 . 8 . . Treads . | . . . . . Legs 1431 | 35 205 458 135 598 Wheels . | . . . . . Hover . | . . . . . Flight . | . . . . . Fastest Speed 50 | 50 120 100 120 120 Average Speed 120 | 123 121 120 120 120 Slowest Speed 190 | 190 190 190 120 120 Overloaded Moves . | . . . . . Propulsion Burnouts . | . . . . . Robots Hopped . | . . . . . Cave-ins Triggered 1 | . . . . 1 Exploration Rate (%) 42 | 5 38 48 31 90 Regions Visited 4 Branch Regions 2 Pre-discovered Areas 1 | . . . . 1 Known Exits Taken . | . . . . . Unknown Exits Taken 4 | 1 1 1 1 . Scrap Searched . | . . . . . Spaces Dug 3 | . . . . 3 Terrain Destroyed 5 | . 2 . . 3 Melee 3 | . . . . 3 Projectile . | . . . . . AOE 2 | . 2 . . . Terrain Rammed . | . . . . . Walls Destroyed . | . . . . . Machines Disabled . | . . . . . Actions | -11 -10 -9 -9 -9 --------- Run | Yrd Mat Mat Min Exi Total 1688 | 51 248 608 143 638 Wait 18 | . 4 9 5 . Move 1439 | 38 204 465 134 598 Hop . | . . . . . Pick Up 43 | 7 7 20 . 9 Fast Attach . | . . . . . Attach 21 | 6 2 11 1 1 Detach 1 | . . . 1 . Swap 14 | . 1 7 1 5 Drop 17 | . 1 9 . 7 Fire 118 | . 29 80 1 8 Melee 10 | . . . . 10 Ram 5 | . . 5 . . Kick 2 | . . 2 . . Crush . | . . . . . Escape Stasis . | . . . . . Rewire . | . . . . . Trap . | . . . . . Miscellaneous . | . . . . . Route ------- -11/Scrapyard -10/Materials -9/Materials (discovered 3 exits: [*Mat x2] / [*Min]) -9/Mines (discovered 2 exits: [*Mat] / *Exi) -9/Exiles (discovered 1 exit: [*Min]) History --------- Turn | Location | Event 45 | -11/Scrapyard | Discovered new exit (range 14) 61 | -11/Scrapyard | Entered Materials 318 | -10/Materials | Build established: Mutant 345 | -10/Materials | Discovered new exit (range 11) 394 | -10/Materials | Entered another Materials area 394 | -9/Materials | Evolved 2 slots: Propulsion x1, Utility x1 542 | -9/Materials | Core integrity fell below 50% 575 | -9/Materials | Lost 6 parts (1p2n3w) 830 | -9/Materials | Discovered new exit (range 16) 854 | -9/Materials | Core integrity fell below 20% 1117 | -9/Materials | Discovered new exit (range 16) 1219 | -9/Materials | Discovered new exit (range 11) 1231 | -9/Materials | Entered Mines 1331 | -9/Mines | Discovered new exit (range 13) 1349 | -9/Mines | Discovered new exit (range 13) 1354 | -9/Mines | Found a hidden stash of uninstalled traps 1390 | -9/Mines | Learned Materials terminal intel 1397 | -9/Mines | Deemed a non-threat by the Exiles lab entrance 1403 | -9/Mines | Entered Exiles 1403 | -9/Exiles | Found Exiles lab destroyed 1523 | -9/Exiles | Learned location of Zion (-6) 2039 | -9/Exiles | Discovered new exit (range 12) 2186 | -9/Exiles | Crushed by falling debris 2186 | -9/Exiles | Smashed by cave-in Last Messages --------------- corruption (0%). EXIT=FOUND Dropped Rocket Launcher. Acquired Mak. Hacking Suite. Sneak attack on as-67060. Hvy. Hammer follow-up attack on as-67060. Destroyed Asb. F-torch. as-67060 system corrupted by crushing effect. as-67060 destroyed. Sneak attack on as-09271. Hvy. Hammer follow-up attack on as-09271. Destroyed Asb. Hover Unit. as-09271 system corrupted by crushing effect. as-09271 destroyed. Sneak attack on as-49676. Hvy. Hammer follow-up attack on as-49676. as-49676 destroyed. Acquired 18 matter. The unstable cave ceiling collapses. Crushed by falling debris. Map ----- +----------------------------------------------------+ | | | | | | | | | | | | | | | | | | | | | | | | | | | | | | | | | | | | | | | ?????????????????????????????????????????????????? | | ?????????????????????????????????????????????????? | | ?????????????????????????????????????????????????? | | ?????????????????????????????????????????????????? | | ????????????????## X####????????????????????? | | ????????????????#############????????????????????? | | ????????????????##X a% ;@ ##????????????????????? | | ????????????????### % #####????????????????????? | | ????????????????### #########????????????????? | | ?????????????????## ##?######????????????????? | | ?????????????????## ##""""""##???????????????? | | ?????????????????## ## """##???????????????? | | ?????????????????## X""##???????????????? | | ?????????########## ## """##???????????????? | | ?????????########## ##""""""##???????????????? | | ?????????##""""""## ##?######????????????????? | | ?????????##""" ## ##?######????????????????? | | ?????????##""X ##???????????????????????? | | ?????????##" ##???????????????????????? | | ?????????##" ## ############?????????????? | | ???????####" ## ############?????????????? | | ??????### ###### ###"""""""##?????????????? | | ?????### ###### ###"""""""##?????????????? | | ?????## ???### ###" """##?????????????? | | ?????## ????### ## ""##?????????????? | | ?????## ????##" ""##?????????????? | | ?????### ????##" "##?????????????? | | ?????#### ????##" "##?????????????? | | ??##########????## "##?????????????? | | ??##########????## ""## ????????????? | | ?## """##?????##" """## ????????????? | +----------------------------------------------------+ Best States ------------- Heat Dissipation 28 Energy Generation 14 Energy Capacity 280 Matter Stores 300 Matter Capacity 300 Sight Range 16 Terrain Scan Density 10 Evasion (%) 55 Targeting Accuracy 5 Item Schematics ----------------- None Robot Schematics ------------------ None Fabricated ------------ Nothing Alien Tech Used ----------------- None Achievements -------------- None Challenges ------------ None Game ------ Seed LayeredImpactRailgun Manual? 0 Play Time 00:18:53 Cumulative 15.3 hours Start 2024.07.28 @ 12:37:17 End 2024.07.28 @ 12:55:53 Sessions 1 Manual Loads 0 Difficulty Rogue Special Mode None Game No. 16 Rogue 9 Adventurer 7 Explorer 0 Win Type - Total 0 Types 0/0/0/0/0/0/0/0/0 Lore% 20 Gallery% 25 Achievement% 23 Wizard Run 0 Options --------- Layout 1 ASCII 0 Keyboard 0 Movement Mouse Keybinds 0 Fullscreen 1 Font 24/Smallcaps Map View 50x35 Zoom Use 0% Tactical HUD 0 Map Filters NONE Filters NONE Steam 1 RUN: 79673a07-474a-45f2-a90f-af476f98d51a